[Event "Titled Tuesday Blitz June 13 Early 2023"]
[White "Papayan, Oleg"]
[Black "Hayrapetyan, Hovik"]
[WhiteFideId "4193911"]
[BlackFideId "13302639"]
[WhiteElo "2167"]
[BlackElo "2348"]
[Result "1/2-1/2"]
[Round "8"]
[TimeControl "180+2"]
[Date "2023.06.13"]
[WhiteClock "0:00:05"]
[BlackClock "0:00:04"]
[Board "107"]

1. e4 {[%clk 0:03:00]}  c5 {[%clk 0:02:59]} 2. d4 {[%clk 0:03:01]}  cxd4 {[%clk 0:02:59]} 3. Qxd4 {[%clk 0:03:02]}  Nc6 {[%clk 0:02:59]} 4. Qd3 {[%clk 0:03:02]}  Nf6 {[%clk 0:02:52]} 5. Nc3 {[%clk 0:03:03]}  a6 {[%clk 0:02:52]} 6. Nf3 {[%clk 0:02:52]}  d6 {[%clk 0:02:52]} 7. Be2 {[%clk 0:02:51]}  b5 {[%clk 0:02:52]} 8. O-O {[%clk 0:02:50]}  Bb7 {[%clk 0:02:52]} 9. a4 {[%clk 0:02:47]}  b4 {[%clk 0:02:51]} 10. Nd5 {[%clk 0:02:48]}  e6 {[%clk 0:02:50]} 11. Nxf6+ {[%clk 0:02:26]}  Qxf6 {[%clk 0:02:51]} 12. Bg5 {[%clk 0:02:26]}  Qxb2 {[%clk 0:02:51]} 13. Rfb1 {[%clk 0:02:25]}  Ne5 {[%clk 0:02:32]} 14. Rxb2 {[%clk 0:02:24]}  Nxd3 {[%clk 0:02:33]} 15. Bxd3 {[%clk 0:02:20]}  d5 {[%clk 0:02:33]} 16. Re1 {[%clk 0:02:07]}  f6 {[%clk 0:02:05]} 17. Bd2 {[%clk 0:02:06]}  a5 {[%clk 0:02:05]} 18. c3 {[%clk 0:01:59]}  Kf7 {[%clk 0:01:41]} 19. exd5 {[%clk 0:01:38]}  Bxd5 {[%clk 0:01:42]} 20. Be4 {[%clk 0:01:38]}  Bxe4 {[%clk 0:01:34]} 21. Rxe4 {[%clk 0:01:38]}  Be7 {[%clk 0:01:15]} 22. Kf1 {[%clk 0:01:00]}  Rhc8 {[%clk 0:01:14]} 23. Rb3 {[%clk 0:00:32]}  Ra6 {[%clk 0:00:35]} 24. Nd4 {[%clk 0:00:31]}  Rc4 {[%clk 0:00:32]} 25. f3 {[%clk 0:00:19]}  Rd6 {[%clk 0:00:19]} 26. Ke2 {[%clk 0:00:15]}  bxc3 {[%clk 0:00:17]} 27. Bxc3 {[%clk 0:00:16]}  Rxa4 {[%clk 0:00:17]} 28. Nb5 {[%clk 0:00:10]}  Rxe4+ {[%clk 0:00:17]} 29. fxe4 {[%clk 0:00:10]}  Ra6 {[%clk 0:00:18]} 30. Rb2 {[%clk 0:00:04]}  a4 {[%clk 0:00:18]} 31. Ra2 {[%clk 0:00:05]}  a3 {[%clk 0:00:16]} 32. Kd3 {[%clk 0:00:05]}  Ra4 {[%clk 0:00:16]} 33. Nd4 {[%clk 0:00:03]}  g5 {[%clk 0:00:13]} 34. Nc2 {[%clk 0:00:02]}  f5 {[%clk 0:00:11]} 35. exf5 {[%clk 0:00:02]}  exf5 {[%clk 0:00:12]} 36. Bd2 {[%clk 0:00:03]}  Kg6 {[%clk 0:00:12]} 37. Bc1 {[%clk 0:00:03]}  Bd6 {[%clk 0:00:10]} 38. h3 {[%clk 0:00:03]}  h5 {[%clk 0:00:10]} 39. Bxa3 {[%clk 0:00:03]}  g4 {[%clk 0:00:09]} 40. hxg4 {[%clk 0:00:03]}  hxg4 {[%clk 0:00:09]} 41. Kc3 {[%clk 0:00:02]}  Kg5 {[%clk 0:00:07]} 42. Kb3 {[%clk 0:00:02]}  Ra6 {[%clk 0:00:03]} 43. Bxd6 {[%clk 0:00:01]}  Rxd6 {[%clk 0:00:04]} 44. Kc3 {[%clk 0:00:02]}  Kf4 {[%clk 0:00:04]} 45. Nd4 {[%clk 0:00:02]}  Rd8 {[%clk 0:00:02]} 46. Rf2+ {[%clk 0:00:02]}  Kg3 {[%clk 0:00:01]} 47. Rxf5 {[%clk 0:00:01]}  Kxg2 {[%clk 0:00:01]} 48. Rg5 {[%clk 0:00:02]}  g3 {[%clk 0:00:02]} 49. Nf5 {[%clk 0:00:01]}  Rc8+ {[%clk 0:00:02]} 50. Kd4 {[%clk 0:00:02]}  Kf3 {[%clk 0:00:02]} 51. Nxg3 {[%clk 0:00:01]}  Kf4 {[%clk 0:00:03]} 52. Rg7 {[%clk 0:00:02]}  Rd8+ {[%clk 0:00:03]} 53. Kc5 {[%clk 0:00:02]}  Rc8+ {[%clk 0:00:04]} 54. Kd6 {[%clk 0:00:03]}  Rd8+ {[%clk 0:00:04]} 55. Ke7 {[%clk 0:00:03]}  Rd3 {[%clk 0:00:05]} 56. Nh5+ {[%clk 0:00:03]}  Ke4 {[%clk 0:00:06]} 57. Nf6+ {[%clk 0:00:03]}  Kf4 {[%clk 0:00:06]} 58. Ne8 {[%clk 0:00:04]}  Re3+ {[%clk 0:00:05]} 59. Kf8 {[%clk 0:00:05]}  Rg3 {[%clk 0:00:06]} 60. Rf7+ {[%clk 0:00:06]}  Ke3 {[%clk 0:00:07]} 61. Ke7 {[%clk 0:00:06]}  Rf3 {[%clk 0:00:07]} 62. Rg7 {[%clk 0:00:06]}  Kf2 {[%clk 0:00:07]} 63. Nf6 {[%clk 0:00:07]}  Re3+ {[%clk 0:00:07]} 64. Kd6 {[%clk 0:00:07]}  Rd3+ {[%clk 0:00:07]} 65. Ke5 {[%clk 0:00:07]}  Ra3 {[%clk 0:00:07]} 66. Ne4+ {[%clk 0:00:07]}  Kf1 {[%clk 0:00:05]} 67. Kf4 {[%clk 0:00:07]}  Ke1 {[%clk 0:00:01]} 68. Rg1+ {[%clk 0:00:07]}  Ke2 {[%clk 0:00:02]} 69. Rg2+ {[%clk 0:00:07]}  Kf1 {[%clk 0:00:02]} 70. Rf2+ {[%clk 0:00:07]}  Ke1 {[%clk 0:00:03]} 71. Rb2 {[%clk 0:00:08]}  Kd1 {[%clk 0:00:02]} 72. Rh2 {[%clk 0:00:06]}  Kc1 {[%clk 0:00:02]} 73. Ke5 {[%clk 0:00:06]}  Kd1 {[%clk 0:00:02]} 74. Kd4 {[%clk 0:00:07]}  Ke1 {[%clk 0:00:02]} 75. Nc3 {[%clk 0:00:06]}  Kf1 {[%clk 0:00:02]} 76. Kd3 {[%clk 0:00:06]}  Kg1 {[%clk 0:00:02]} 77. Re2 {[%clk 0:00:06]}  Ra8 {[%clk 0:00:02]} 78. Ke3 {[%clk 0:00:06]}  Re8+ {[%clk 0:00:02]} 79. Ne4 {[%clk 0:00:07]}  Re7 {[%clk 0:00:02]} 80. Re1+ {[%clk 0:00:07]}  Kg2 {[%clk 0:00:02]} 81. Rb1 {[%clk 0:00:07]}  Kh3 {[%clk 0:00:02]} 82. Rg1 {[%clk 0:00:07]}  Kh4 {[%clk 0:00:02]} 83. Kf4 {[%clk 0:00:06]}  Rf7+ {[%clk 0:00:02]} 84. Ke5 {[%clk 0:00:06]}  Kh3 {[%clk 0:00:03]} 85. Ng5+ {[%clk 0:00:06]}  Kh2 {[%clk 0:00:03]} 86. Rg4 {[%clk 0:00:05]}  Rf2 {[%clk 0:00:03]} 87. Ke4 {[%clk 0:00:04]}  Ra2 {[%clk 0:00:02]} 88. Nf3+ {[%clk 0:00:04]}  Kh3 {[%clk 0:00:02]} 89. Rg8 {[%clk 0:00:03]}  Ra4+ {[%clk 0:00:03]} 90. Ke3 {[%clk 0:00:04]}  Ra3+ {[%clk 0:00:03]} 91. Ke2 {[%clk 0:00:04]}  Ra2+ {[%clk 0:00:04]} 92. Nd2 {[%clk 0:00:05]}  Kh4 {[%clk 0:00:04]} 93. Ke3 {[%clk 0:00:04]}  Kh5 {[%clk 0:00:04]} 94. Ne4 {[%clk 0:00:04]}  Kh6 {[%clk 0:00:04]} 95. Kf4 {[%clk 0:00:04]}  Ra4 {[%clk 0:00:04]} 96. Kf5 {[%clk 0:00:04]}  Ra5+ {[%clk 0:00:05]} 97. Kf4 {[%clk 0:00:05]}  Ra4 {[%clk 0:00:05]} 98. Rg1 {[%clk 0:00:05]}  Kh7 {[%clk 0:00:05]} 99. Kf5 {[%clk 0:00:05]}  Ra5+ {[%clk 0:00:05]} 100. Ke6 {[%clk 0:00:05]}  Ra6+ {[%clk 0:00:04]} 101. Nd6 {[%clk 0:00:05]} 1/2-1/2


[Site "https://www.chess.com"]

[Event "Titled Tuesday Blitz June 13 Early 2023"]
[White "Kozak, Antoni"]
[Black "Bueno, Alfeu Junior Varela"]
[WhiteFideId "21832030"]
[BlackFideId "2108879"]
[WhiteElo "2470"]
[BlackElo "2175"]
[Result "0-1"]
[Round "8"]
[TimeControl "180+2"]
[Date "2023.06.13"]
[WhiteClock "0:00:15"]
[BlackClock "0:00:15"]
[Board "108"]

1. c4 {[%clk 0:03:00]}  e5 {[%clk 0:03:00]} 2. e3 {[%clk 0:03:01]}  Nc6 {[%clk 0:03:00]} 3. Nc3 {[%clk 0:03:00]}  f5 {[%clk 0:03:00]} 4. g4 {[%clk 0:02:59]}  fxg4 {[%clk 0:02:52]} 5. Qxg4 {[%clk 0:02:52]}  Nf6 {[%clk 0:02:47]} 6. Qg2 {[%clk 0:02:52]}  Nb4 {[%clk 0:02:40]} 7. Rb1 {[%clk 0:02:25]}  Nc2+ {[%clk 0:02:34]} 8. Kd1 {[%clk 0:02:24]}  Nb4 {[%clk 0:02:34]} 9. a3 {[%clk 0:02:24]}  Nc6 {[%clk 0:02:29]} 10. Nf3 {[%clk 0:02:17]}  d6 {[%clk 0:02:18]} 11. Be2 {[%clk 0:02:12]}  Bf5 {[%clk 0:02:14]} 12. d3 {[%clk 0:02:13]}  e4 {[%clk 0:02:07]} 13. Nh4 {[%clk 0:02:03]}  exd3 {[%clk 0:01:50]} 14. Nxf5 {[%clk 0:02:02]}  dxe2+ {[%clk 0:01:49]} 15. Kxe2 {[%clk 0:02:03]}  Qd7 {[%clk 0:01:47]} 16. Qf3 {[%clk 0:01:41]}  O-O-O {[%clk 0:01:42]} 17. Ng3 {[%clk 0:01:08]}  Re8 {[%clk 0:01:25]} 18. Qf5 {[%clk 0:01:05]}  Nd4+ {[%clk 0:01:24]} 19. Kf1 {[%clk 0:00:56]}  Nxf5 {[%clk 0:01:24]} 20. Bd2 {[%clk 0:00:57]}  Nxg3+ {[%clk 0:01:19]} 21. hxg3 {[%clk 0:00:58]}  Qf5 {[%clk 0:01:19]} 22. Kg2 {[%clk 0:00:55]}  Ne4 {[%clk 0:01:16]} 23. Be1 {[%clk 0:00:45]}  Nxc3 {[%clk 0:00:57]} 24. Bxc3 {[%clk 0:00:45]}  Qe4+ {[%clk 0:00:56]} 25. Kh2 {[%clk 0:00:45]}  Qxc4 {[%clk 0:00:57]} 26. Rbd1 {[%clk 0:00:44]}  h5 {[%clk 0:00:52]} 27. Rd4 {[%clk 0:00:43]}  Qe2 {[%clk 0:00:52]} 28. Kg2 {[%clk 0:00:43]}  Be7 {[%clk 0:00:44]} 29. Rf4 {[%clk 0:00:41]}  Bf6 {[%clk 0:00:40]} 30. Ba5 {[%clk 0:00:35]}  b6 {[%clk 0:00:36]} 31. Bb4 {[%clk 0:00:35]}  a5 {[%clk 0:00:29]} 32. Be1 {[%clk 0:00:32]}  Be5 {[%clk 0:00:26]} 33. Rf5 {[%clk 0:00:26]}  g6 {[%clk 0:00:24]} 34. Rf7 {[%clk 0:00:26]}  Rhf8 {[%clk 0:00:23]} 35. Rh7 {[%clk 0:00:25]}  Qf3+ {[%clk 0:00:22]} 36. Kg1 {[%clk 0:00:25]}  Rf7 {[%clk 0:00:21]} 37. Rh6 {[%clk 0:00:23]}  Qf5 {[%clk 0:00:20]} 38. Rh4 {[%clk 0:00:20]}  Bxg3 {[%clk 0:00:19]} 39. e4 {[%clk 0:00:19]}  Bxf2+ {[%clk 0:00:18]} 40. Kh2 {[%clk 0:00:18]}  Qe5+ {[%clk 0:00:17]} 41. Kh1 {[%clk 0:00:17]}  Bxh4 {[%clk 0:00:16]} 42. Bxh4 {[%clk 0:00:15]}  Qxe4+ {[%clk 0:00:15]} 43. Kg1 {[%clk 0:00:14]}  Qxh4 {[%clk 0:00:16]} 44. Rxg6 {[%clk 0:00:14]}  Qg4+ {[%clk 0:00:14]} 45. Rxg4 {[%clk 0:00:14]}  hxg4 {[%clk 0:00:15]} 46. b3 {[%clk 0:00:14]}  Re2 {[%clk 0:00:15]} 47. b4 {[%clk 0:00:15]}  a4 {[%clk 0:00:15]} 48. b5 {[%clk 0:00:15]}  d5 {[%clk 0:00:14]} 49. Kh1 {[%clk 0:00:15]}  Rf1# {[%clk 0:00:15]} 0-1


[Site "https://www.chess.com"]

[Event "Titled Tuesday Blitz June 13 Early 2023"]
[White "Lopez, Nelson M, Ii"]
[Black "benny_aizenberg"]
[WhiteFideId "2027895"]
[WhiteElo "2451"]
[BlackElo "2683"]
[Result "0-1"]
[Round "8"]
[TimeControl "180+2"]
[Date "2023.06.13"]
[WhiteClock "0:00:33"]
[BlackClock "0:00:38"]
[Board "109"]

1. e4 {[%clk 0:03:00]}  g5 {[%clk 0:03:00]} 2. Bc4 {[%clk 0:02:54]}  g4 {[%clk 0:03:01]} 3. d4 {[%clk 0:02:47]}  h5 {[%clk 0:02:58]} 4. Nc3 {[%clk 0:02:41]}  Bg7 {[%clk 0:02:56]} 5. Be3 {[%clk 0:02:38]}  d6 {[%clk 0:02:54]} 6. Nge2 {[%clk 0:02:33]}  Nd7 {[%clk 0:02:46]} 7. Qd2 {[%clk 0:02:26]}  e5 {[%clk 0:02:43]} 8. O-O-O {[%clk 0:02:24]}  Ne7 {[%clk 0:02:38]} 9. h3 {[%clk 0:02:21]}  exd4 {[%clk 0:02:16]} 10. Nxd4 {[%clk 0:02:19]}  Ne5 {[%clk 0:02:14]} 11. Be2 {[%clk 0:02:12]}  Be6 {[%clk 0:02:00]} 12. Nxe6 {[%clk 0:02:06]}  fxe6 {[%clk 0:01:59]} 13. hxg4 {[%clk 0:02:01]}  hxg4 {[%clk 0:01:57]} 14. Rxh8+ {[%clk 0:01:57]}  Bxh8 {[%clk 0:01:57]} 15. Bd4 {[%clk 0:01:39]}  N7g6 {[%clk 0:01:48]} 16. Qh6 {[%clk 0:01:39]}  Qf6 {[%clk 0:01:41]} 17. Bxe5 {[%clk 0:00:50]}  Nxe5 {[%clk 0:01:36]} 18. Qh5+ {[%clk 0:00:50]}  Ke7 {[%clk 0:01:09]} 19. Bxg4 {[%clk 0:00:46]}  Qf4+ {[%clk 0:01:07]} 20. Kb1 {[%clk 0:00:42]}  Qxg4 {[%clk 0:01:08]} 21. Qxg4 {[%clk 0:00:30]}  Nxg4 {[%clk 0:01:09]} 22. f3 {[%clk 0:00:31]}  Ne3 {[%clk 0:01:04]} 23. Rg1 {[%clk 0:00:30]}  Bxc3 {[%clk 0:01:03]} 24. bxc3 {[%clk 0:00:30]}  Rg8 {[%clk 0:01:03]} 25. g4 {[%clk 0:00:30]}  Rf8 {[%clk 0:01:04]} 26. Rg3 {[%clk 0:00:25]}  Nf1 {[%clk 0:01:05]} 27. Rh3 {[%clk 0:00:23]}  Rxf3 {[%clk 0:01:05]} 28. Rh7+ {[%clk 0:00:20]}  Rf7 {[%clk 0:01:04]} 29. Rh5 {[%clk 0:00:17]}  Nd2+ {[%clk 0:01:03]} 30. Kb2 {[%clk 0:00:17]}  Nxe4 {[%clk 0:01:03]} 31. Ra5 {[%clk 0:00:17]}  a6 {[%clk 0:01:02]} 32. Rh5 {[%clk 0:00:18]}  Nf6 {[%clk 0:00:59]} 33. Rh4 {[%clk 0:00:17]}  Rg7 {[%clk 0:00:58]} 34. g5 {[%clk 0:00:17]}  Rxg5 {[%clk 0:00:58]} 35. Rb4 {[%clk 0:00:18]}  Rb5 {[%clk 0:00:58]} 36. a4 {[%clk 0:00:19]}  Rxb4+ {[%clk 0:00:58]} 37. cxb4 {[%clk 0:00:20]}  b5 {[%clk 0:00:58]} 38. Kb3 {[%clk 0:00:21]}  bxa4+ {[%clk 0:00:57]} 39. Kxa4 {[%clk 0:00:18]}  e5 {[%clk 0:00:58]} 40. Ka5 {[%clk 0:00:19]}  e4 {[%clk 0:00:58]} 41. Kxa6 {[%clk 0:00:20]}  e3 {[%clk 0:00:58]} 42. b5 {[%clk 0:00:21]}  e2 {[%clk 0:00:58]} 43. b6 {[%clk 0:00:22]}  e1=Q {[%clk 0:00:58]} 44. b7 {[%clk 0:00:22]}  Nd5 {[%clk 0:00:56]} 45. Ka7 {[%clk 0:00:23]}  Ne3 {[%clk 0:00:52]} 46. Kb8 {[%clk 0:00:24]}  Nxc2 {[%clk 0:00:51]} 47. Kc8 {[%clk 0:00:19]}  Qb1 {[%clk 0:00:47]} 48. b8=Q {[%clk 0:00:20]}  Qxb8+ {[%clk 0:00:46]} 49. Kxb8 {[%clk 0:00:21]}  Kd7 {[%clk 0:00:46]} 50. Kb7 {[%clk 0:00:22]}  d5 {[%clk 0:00:45]} 51. Ka6 {[%clk 0:00:23]}  Kc6 {[%clk 0:00:45]} 52. Ka5 {[%clk 0:00:23]}  Kc5 {[%clk 0:00:46]} 53. Ka4 {[%clk 0:00:24]}  Kc4 {[%clk 0:00:46]} 54. Ka5 {[%clk 0:00:24]}  c5 {[%clk 0:00:47]} 55. Ka4 {[%clk 0:00:24]}  d4 {[%clk 0:00:48]} 56. Ka5 {[%clk 0:00:25]}  d3 {[%clk 0:00:49]} 57. Ka4 {[%clk 0:00:26]}  d2 {[%clk 0:00:50]} 58. Ka5 {[%clk 0:00:27]}  d1=Q {[%clk 0:00:50]} 59. Ka4 {[%clk 0:00:28]}  Qb1 {[%clk 0:00:45]} 60. Ka5 {[%clk 0:00:29]}  Kb3 {[%clk 0:00:45]} 61. Ka6 {[%clk 0:00:30]}  c4 {[%clk 0:00:46]} 62. Kb6 {[%clk 0:00:30]}  c3 {[%clk 0:00:47]} 63. Ka5 {[%clk 0:00:31]}  Na1 {[%clk 0:00:48]} 64. Kb6 {[%clk 0:00:32]}  c2 {[%clk 0:00:48]} 65. Kb5 {[%clk 0:00:33]}  c1=Q {[%clk 0:00:41]} 66. Ka5 {[%clk 0:00:34]}  Qc5+ {[%clk 0:00:38]} 67. Ka6 {[%clk 0:00:33]}  Qa2+ {[%clk 0:00:38]} 68. Kb7 {[%clk 0:00:33]}  Qaa7# {[%clk 0:00:38]} 0-1


[Site "https://www.chess.com"]

[Event "Titled Tuesday Blitz June 13 Early 2023"]
[White "Vega Gutierrez, Sabrina"]
[Black "Asavasaetakul, Chawit"]
[WhiteFideId "2219026"]
[BlackFideId "6204856"]
[WhiteElo "2209"]
[BlackElo "1919"]
[Result "0-1"]
[Round "8"]
[TimeControl "180+2"]
[Date "2023.06.13"]
[WhiteClock "0:00:00"]
[BlackClock "0:01:03"]
[Board "110"]

1. e4 {[%clk 0:03:00]}  d5 {[%clk 0:02:59]} 2. exd5 {[%clk 0:03:00]}  Nf6 {[%clk 0:02:59]} 3. Nf3 {[%clk 0:02:58]}  Nxd5 {[%clk 0:03:00]} 4. d4 {[%clk 0:02:58]}  Bf5 {[%clk 0:03:00]} 5. Be2 {[%clk 0:02:54]}  e6 {[%clk 0:03:01]} 6. O-O {[%clk 0:02:54]}  Be7 {[%clk 0:03:01]} 7. c4 {[%clk 0:02:52]}  Nb4 {[%clk 0:03:02]} 8. Nc3 {[%clk 0:02:37]}  Nc2 {[%clk 0:02:57]} 9. Rb1 {[%clk 0:02:37]}  Nb4 {[%clk 0:02:56]} 10. Ra1 {[%clk 0:02:34]}  Nc2 {[%clk 0:02:50]} 11. Rb1 {[%clk 0:02:34]}  Nc6 {[%clk 0:02:50]} 12. d5 {[%clk 0:02:29]}  N6b4 {[%clk 0:02:51]} 13. a3 {[%clk 0:02:23]}  Nxa3 {[%clk 0:02:51]} 14. bxa3 {[%clk 0:02:19]}  Bxb1 {[%clk 0:02:51]} 15. Nxb1 {[%clk 0:02:01]}  Na6 {[%clk 0:02:43]} 16. dxe6 {[%clk 0:01:38]}  fxe6 {[%clk 0:02:43]} 17. Qc2 {[%clk 0:01:23]}  O-O {[%clk 0:02:40]} 18. Bd3 {[%clk 0:01:15]}  h6 {[%clk 0:02:34]} 19. Ne5 {[%clk 0:01:03]}  Bd6 {[%clk 0:02:34]} 20. Bh7+ {[%clk 0:01:02]}  Kh8 {[%clk 0:02:30]} 21. Ng6+ {[%clk 0:01:02]}  Kxh7 {[%clk 0:02:30]} 22. Nxf8+ {[%clk 0:00:59]}  Kg8 {[%clk 0:02:31]} 23. Nxe6 {[%clk 0:00:56]}  Qf6 {[%clk 0:02:27]} 24. c5 {[%clk 0:00:42]}  Be5 {[%clk 0:02:10]} 25. Qb3 {[%clk 0:00:41]}  Kh8 {[%clk 0:02:10]} 26. Qxb7 {[%clk 0:00:39]}  Re8 {[%clk 0:02:00]} 27. Qxa6 {[%clk 0:00:39]}  Rxe6 {[%clk 0:01:59]} 28. Qc4 {[%clk 0:00:39]}  Qg6 {[%clk 0:01:34]} 29. Nd2 {[%clk 0:00:31]}  Rf6 {[%clk 0:01:31]} 30. Qe4 {[%clk 0:00:28]}  Qh5 {[%clk 0:01:30]} 31. g3 {[%clk 0:00:23]}  Bc3 {[%clk 0:01:19]} 32. Nc4 {[%clk 0:00:21]}  Qxc5 {[%clk 0:01:19]} 33. Be3 {[%clk 0:00:18]}  Qb5 {[%clk 0:01:17]} 34. Rd1 {[%clk 0:00:18]}  Rf8 {[%clk 0:01:15]} 35. Qe7 {[%clk 0:00:16]}  Qf5 {[%clk 0:01:12]} 36. Rd8 {[%clk 0:00:11]}  Rxd8 {[%clk 0:01:11]} 37. Qxd8+ {[%clk 0:00:12]}  Kh7 {[%clk 0:01:12]} 38. Qd1 {[%clk 0:00:09]}  a5 {[%clk 0:01:11]} 39. a4 {[%clk 0:00:08]}  c6 {[%clk 0:01:10]} 40. h4 {[%clk 0:00:08]}  Qe4 {[%clk 0:01:10]} 41. Nd6 {[%clk 0:00:08]}  Qb4 {[%clk 0:01:09]} 42. Qd3+ {[%clk 0:00:08]}  Kg8 {[%clk 0:01:09]} 43. Qg6 {[%clk 0:00:08]}  Bf6 {[%clk 0:01:07]} 44. Nf5 {[%clk 0:00:06]}  Qb1+ {[%clk 0:01:07]} 45. Kh2 {[%clk 0:00:06]}  Kh8 {[%clk 0:01:07]} 46. Bf4 {[%clk 0:00:04]}  c5 {[%clk 0:01:07]} 47. Be3 {[%clk 0:00:04]}  c4 {[%clk 0:01:06]} 48. Bxh6 {[%clk 0:00:04]}  Qb2 {[%clk 0:01:03]} 49. Bg5 {[%clk 0:00:03]}  Bxg5 {[%clk 0:01:03]} 50. Qh5+ {[%clk 0:00:03]}  Bh6 {[%clk 0:01:02]} 51. Nxh6 {[%clk 0:00:02]}  Qxf2+ {[%clk 0:01:02]} 52. Kh3 {[%clk 0:00:03]}  Qf1+ {[%clk 0:01:02]} 53. Kh2 {[%clk 0:00:03]}  gxh6 {[%clk 0:01:03]} 54. Qxh6+ {[%clk 0:00:03]}  Kg8 {[%clk 0:01:03]} 55. Qe6+ {[%clk 0:00:03]}  Kf8 {[%clk 0:01:04]} 56. Qd6+ {[%clk 0:00:03]}  Kf7 {[%clk 0:01:04]} 57. Qd5+ {[%clk 0:00:03]}  Ke7 {[%clk 0:01:04]} 58. Qxa5 {[%clk 0:00:03]}  Qe2+ {[%clk 0:01:03]} 59. Kh3 {[%clk 0:00:03]}  Qe6+ {[%clk 0:01:03]} 60. Kh2 {[%clk 0:00:03]}  Qe2+ {[%clk 0:01:02]} 61. Kh3 {[%clk 0:00:03]}  Qe6+ {[%clk 0:01:02]} 62. Kh2 {[%clk 0:00:03]}  Qc6 {[%clk 0:01:01]} 63. Qe5+ {[%clk 0:00:02]}  Kd7 {[%clk 0:01:01]} 64. Qd4+ {[%clk 0:00:02]}  Kc7 {[%clk 0:01:01]} 65. Qe5+ {[%clk 0:00:02]}  Kb6 {[%clk 0:01:01]} 66. Qc3 {[%clk 0:00:03]}  Qxa4 {[%clk 0:01:01]} 67. h5 {[%clk 0:00:02]}  Qb3 {[%clk 0:01:02]} 68. Qd4+ {[%clk 0:00:02]}  Kb5 {[%clk 0:01:02]} 69. h6 {[%clk 0:00:02]}  c3 {[%clk 0:01:03]} 70. h7 {[%clk 0:00:01]}  Qa2+ {[%clk 0:01:03]} 71. Kg1 {[%clk 0:00:01]}  Qb1+ {[%clk 0:01:02]} 72. Kh2 {[%clk 0:00:01]}  Qxh7+ {[%clk 0:01:01]} 73. Kg2 {[%clk 0:00:01]}  Qc2+ {[%clk 0:01:02]} 74. Kh3 {[%clk 0:00:02]}  Qd2 {[%clk 0:01:02]} 75. Qe5+ {[%clk 0:00:01]}  Kc4 {[%clk 0:01:03]} 76. Qe6+ {[%clk 0:00:01]}  Qd5 {[%clk 0:01:02]} 77. Qe2+ {[%clk 0:00:01]}  Qd3 {[%clk 0:01:02]} 78. Qe6+ {[%clk 0:00:02]}  Kb4 {[%clk 0:01:03]} 79. Qb6+ {[%clk 0:00:02]}  Ka3 {[%clk 0:01:03]} 80. Qa5+ {[%clk 0:00:02]}  Kb2 {[%clk 0:01:03]} 81. Qb4+ {[%clk 0:00:02]}  Kc1 {[%clk 0:01:04]} 82. Qa3+ {[%clk 0:00:02]}  Kd2 {[%clk 0:01:05]} 83. Qb4 {[%clk 0:00:00]}  Ke2 {[%clk 0:01:03]} 0-1


[Site "https://www.chess.com"]

[Event "Titled Tuesday Blitz June 13 Early 2023"]
[White "MaryanKyrychenko"]
[Black "Mogirzan, Matei-Valeriu"]
[BlackFideId "1257455"]
[WhiteElo "2610"]
[BlackElo "1733"]
[Result "0-1"]
[Round "8"]
[TimeControl "180+2"]
[Date "2023.06.13"]
[WhiteClock "0:00:00"]
[BlackClock "0:00:25"]
[Board "111"]

1. e4 {[%clk 0:03:00]}  e5 {[%clk 0:02:59]} 2. Nf3 {[%clk 0:03:00]}  Nf6 {[%clk 0:02:58]} 3. Nxe5 {[%clk 0:03:00]}  Nc6 {[%clk 0:02:59]} 4. Nxc6 {[%clk 0:03:00]}  dxc6 {[%clk 0:02:59]} 5. Nc3 {[%clk 0:03:00]}  Bc5 {[%clk 0:02:58]} 6. d3 {[%clk 0:02:53]}  Ng4 {[%clk 0:02:55]} 7. Be3 {[%clk 0:02:46]}  Nxe3 {[%clk 0:02:55]} 8. fxe3 {[%clk 0:02:47]}  Bxe3 {[%clk 0:02:55]} 9. Qe2 {[%clk 0:02:46]}  Qg5 {[%clk 0:02:55]} 10. Nd1 {[%clk 0:02:29]}  Bc1 {[%clk 0:02:29]} 11. h4 {[%clk 0:01:56]}  Qh6 {[%clk 0:02:13]} 12. Kf2 {[%clk 0:01:08]}  Qf6+ {[%clk 0:01:58]} 13. Qf3 {[%clk 0:01:06]}  Bxb2 {[%clk 0:01:51]} 14. Qxf6 {[%clk 0:01:02]}  Bxf6 {[%clk 0:01:47]} 15. Rb1 {[%clk 0:01:00]}  b6 {[%clk 0:01:39]} 16. c3 {[%clk 0:00:58]}  Be6 {[%clk 0:01:35]} 17. d4 {[%clk 0:00:46]}  Bxa2 {[%clk 0:01:29]} 18. Ra1 {[%clk 0:00:45]}  Be6 {[%clk 0:01:24]} 19. e5 {[%clk 0:00:46]}  Be7 {[%clk 0:01:23]} 20. Ne3 {[%clk 0:00:45]}  O-O {[%clk 0:01:22]} 21. Bd3 {[%clk 0:00:44]}  f6 {[%clk 0:01:22]} 22. exf6 {[%clk 0:00:40]}  Bxf6 {[%clk 0:01:21]} 23. Ke2 {[%clk 0:00:40]}  a5 {[%clk 0:01:18]} 24. g4 {[%clk 0:00:34]}  Rae8 {[%clk 0:01:14]} 25. g5 {[%clk 0:00:30]}  Bxd4 {[%clk 0:00:59]} 26. cxd4 {[%clk 0:00:28]}  Bg4+ {[%clk 0:00:59]} 27. Kd2 {[%clk 0:00:24]}  Rf2+ {[%clk 0:00:58]} 28. Kc3 {[%clk 0:00:25]}  Rxe3 {[%clk 0:00:57]} 29. Rhe1 {[%clk 0:00:20]}  Rff3 {[%clk 0:00:55]} 30. Rxe3 {[%clk 0:00:17]}  Rxe3 {[%clk 0:00:56]} 31. Kd2 {[%clk 0:00:17]}  Re7 {[%clk 0:00:49]} 32. Rc1 {[%clk 0:00:16]}  Bd7 {[%clk 0:00:48]} 33. Rf1 {[%clk 0:00:15]}  g6 {[%clk 0:00:45]} 34. Bc4+ {[%clk 0:00:03]}  Kg7 {[%clk 0:00:45]} 35. Rf6 {[%clk 0:00:03]}  b5 {[%clk 0:00:45]} 36. Bd3 {[%clk 0:00:01]}  Be8 {[%clk 0:00:43]} 37. Kc3 {[%clk 0:00:02]}  b4+ {[%clk 0:00:38]} 38. Kc4 {[%clk 0:00:02]}  Rd7 {[%clk 0:00:35]} 39. Kc5 {[%clk 0:00:01]}  Rd5+ {[%clk 0:00:33]} 40. Kc4 {[%clk 0:00:02]}  Bf7 {[%clk 0:00:32]} 41. Be4 {[%clk 0:00:00]}  Rf5+ {[%clk 0:00:25]} 0-1


[Site "https://www.chess.com"]

[Event "Titled Tuesday Blitz June 13 Early 2023"]
[White "Palczert, Matyas"]
[Black "Schnaider, Ilan"]
[WhiteFideId "784958"]
[BlackFideId "169013"]
[WhiteElo "2224"]
[BlackElo "2224"]
[Result "1-0"]
[Round "8"]
[TimeControl "180+2"]
[Date "2023.06.13"]
[WhiteClock "0:02:08"]
[BlackClock "0:01:02"]
[Board "113"]

1. e4 {[%clk 0:03:00]}  c6 {[%clk 0:02:51]} 2. d4 {[%clk 0:03:00]}  d5 {[%clk 0:02:51]} 3. Nc3 {[%clk 0:02:56]}  dxe4 {[%clk 0:02:51]} 4. Nxe4 {[%clk 0:02:55]}  Bf5 {[%clk 0:02:51]} 5. Ng3 {[%clk 0:02:55]}  Bg6 {[%clk 0:02:51]} 6. h4 {[%clk 0:02:55]}  h6 {[%clk 0:02:52]} 7. Nf3 {[%clk 0:02:54]}  Nf6 {[%clk 0:02:52]} 8. h5 {[%clk 0:02:49]}  Bh7 {[%clk 0:02:52]} 9. Bd3 {[%clk 0:02:49]}  Bxd3 {[%clk 0:02:49]} 10. Qxd3 {[%clk 0:02:49]}  Nbd7 {[%clk 0:02:49]} 11. Bd2 {[%clk 0:02:47]}  e6 {[%clk 0:02:50]} 12. O-O-O {[%clk 0:02:47]}  Bd6 {[%clk 0:02:50]} 13. Kb1 {[%clk 0:02:46]}  Bxg3 {[%clk 0:02:41]} 14. fxg3 {[%clk 0:02:44]}  Qb6 {[%clk 0:02:41]} 15. Ne5 {[%clk 0:02:40]}  O-O {[%clk 0:02:32]} 16. Nxd7 {[%clk 0:02:38]}  Nxd7 {[%clk 0:02:32]} 17. g4 {[%clk 0:02:38]}  c5 {[%clk 0:02:31]} 18. g5 {[%clk 0:02:37]}  hxg5 {[%clk 0:01:58]} 19. h6 {[%clk 0:02:35]}  g6 {[%clk 0:01:55]} 20. h7+ {[%clk 0:02:32]}  Kg7 {[%clk 0:01:55]} 21. Bxg5 {[%clk 0:02:28]}  Rh8 {[%clk 0:01:33]} 22. dxc5 {[%clk 0:02:18]}  Qxc5 {[%clk 0:01:12]} 23. Bh6+ {[%clk 0:02:13]}  Kf6 {[%clk 0:01:02]} 24. Rhf1+ {[%clk 0:02:08]} 1-0


[Site "https://www.chess.com"]